[Event "Nové Hrady - Rapid A"]
[Site "Nové Hrady, Czech Republic"]
[Date "2023.08.12"]
[Round "3.3"]
[White "Urban, Zdeněk"]
[Black "Hák, David"]
[Result "0-1"]
[TimeControl "2x20min+5s"]
[WhiteFideId "312754"]
[BlackFideId "377007"]
[WhiteElo "2048"]
[BlackElo "2123"]

1. d4 {[%clk 00:20:05]} Nf6 {[%clk 00:20:05]} {[%emt 00:00:03]} 2. c4 {[%clk
00:20:05]} {[%emt 00:00:02]} e6 {[%clk 00:19:59]} {[%emt 00:00:12]} 3. Nf3
{[%clk 00:20:05]} {[%emt 00:00:02]} Bb4+ {[%clk 00:19:59]} {[%emt 00:00:04]} 4.
Bd2 {[%clk 00:20:05]} {[%emt 00:00:05]} Qe7 {[%clk 00:19:58]} {[%emt 00:00:07]}
5. a3 {[%clk 00:20:05]} {[%emt 00:00:01]} Bxd2+ {[%clk 00:19:58]} {[%emt
00:00:03]} 6. Qxd2 {[%clk 00:20:05]} {[%emt 00:00:02]} d6 {[%clk 00:19:53]}
{[%emt 00:00:11]} 7. Qf4 {[%clk 00:19:55]} {[%emt 00:00:14]} Nc6 {[%clk
00:19:16]} {[%emt 00:00:43]} 8. Nc3 {[%clk 00:19:55]} {[%emt 00:00:04]} e5
{[%clk 00:18:59]} {[%emt 00:00:22]} 9. dxe5 {[%clk 00:19:30]} {[%emt 00:00:29]}
dxe5 {[%clk 00:18:59]} {[%emt 00:00:04]} 10. Qd2 {[%clk 00:18:54]} {[%emt
00:00:41]} Na5 {[%clk 00:17:42]} {[%emt 00:01:22]} 11. Nd5 {[%clk 00:18:03]}
{[%emt 00:00:56]} Nxc4 {[%clk 00:16:41]} {[%emt 00:01:06]} 12. Nxe7 {[%clk
00:17:45]} {[%emt 00:00:23]} Nxd2 {[%clk 00:16:41]} {[%emt 00:00:02]} 13. Kxd2
{[%clk 00:17:05]} {[%emt 00:00:45]} Kxe7 {[%clk 00:16:41]} {[%emt 00:00:04]} 14.
Nxe5 {[%clk 00:17:05]} {[%emt 00:00:02]} Rd8+ {[%clk 00:15:57]} {[%emt
00:00:49]} 15. Nd3 {[%clk 00:16:14]} {[%emt 00:00:55]} Bf5 {[%clk 00:15:14]}
{[%emt 00:00:48]} 16. f3 {[%clk 00:15:47]} {[%emt 00:00:33]} Bxd3 {[%clk
00:14:14]} {[%emt 00:01:06]} 17. exd3 {[%clk 00:15:47]} Rd4 {[%clk 00:13:54]}
{[%emt 00:00:25]} 18. Rc1 {[%clk 00:15:32]} {[%emt 00:00:20]} c6 {[%clk
00:13:49]} {[%emt 00:00:10]} 19. Rc4 {[%clk 00:14:10]} {[%emt 00:01:27]} Rad8
{[%clk 00:13:42]} {[%emt 00:00:12]} 20. Rxd4 {[%clk 00:14:10]} {[%emt
00:00:02]} Rxd4 {[%clk 00:13:42]} 21. g3 {[%clk 00:14:07]} {[%emt 00:00:09]} c5
{[%clk 00:12:31]} {[%emt 00:01:16]} 22. Be2 {[%clk 00:13:51]} {[%emt 00:00:21]}
h5 {[%clk 00:12:11]} {[%emt 00:00:25]} 23. Rc1 {[%clk 00:13:32]} {[%emt
00:00:23]} b6 {[%clk 00:12:06]} {[%emt 00:00:11]} 24. f4 {[%clk 00:13:32]}
{[%emt 00:00:04]} h4 {[%clk 00:11:58]} {[%emt 00:00:14]} 25. Bf3 {[%clk
00:13:29]} {[%emt 00:00:07]} Nd7 {[%clk 00:09:16]} {[%emt 00:02:48]} 26. Re1+
{[%clk 00:12:09]} {[%emt 00:01:25]} Kf6 {[%clk 00:08:25]} {[%emt 00:00:56]} 27.
Kc3 {[%clk 00:11:29]} {[%emt 00:00:46]} Nf8 {[%clk 00:07:35]} {[%emt 00:00:54]}
28. Re8 {[%clk 00:10:11]} {[%emt 00:01:23]} Ne6 {[%clk 00:07:35]} 29. Ra8
{[%clk 00:09:50]} {[%emt 00:00:27]} Nc7 {[%clk 00:07:35]} 30. Kc2 {[%clk
00:09:42]} {[%emt 00:00:14]} Nxa8 {[%clk 00:07:35]} {[%emt 00:00:06]} 31. Bxa8
{[%clk 00:09:42]} {[%emt 00:00:05]} g5 {[%clk 00:07:26]} {[%emt 00:00:13]} 32.
fxg5+ {[%clk 00:09:17]} {[%emt 00:00:30]} Kxg5 {[%clk 00:07:26]} {[%emt
00:00:02]} 33. Bf3 {[%clk 00:09:17]} {[%emt 00:00:03]} hxg3 {[%clk 00:07:26]}
{[%emt 00:00:06]} 34. hxg3 {[%emt 00:00:03]} Rg4 {[%clk 00:07:16]} {[%emt
00:00:13]} 35. Bxg4 {[%clk 00:08:41]} {[%emt 00:00:41]} Kxg4 {[%clk 00:07:16]}
36. b4 {[%clk 00:08:36]} {[%emt 00:00:11]} Kxg3 {[%clk 00:07:14]} {[%emt
00:00:08]} 37. bxc5 {[%clk 00:08:26]} {[%emt 00:00:14]} bxc5 {[%clk 00:07:14]}
{[%emt 00:00:02]} 38. Kc3 {[%clk 00:08:26]} f5 {[%clk 00:07:14]} {[%emt
00:00:04]} 39. Kc4 {[%clk 00:08:26]} f4 {[%clk 00:07:14]} 40. Kxc5 {[%clk
00:08:26]} f3 {[%clk 00:07:14]} 41. Kd4 {[%emt 00:00:29]} 0-1

[Event "Nové Hrady - Rapid A"]
[Site "Nové Hrady, Czech Republic"]
[Date "2023.08.12"]
[Round "3.4"]
[White "Prinz, Hubert"]
[Black "Garabik, Marek"]
[Result "0-1"]
[TimeControl "2x20min+5s"]
[WhiteFideId "1639447"]
[BlackFideId "23717742"]
[WhiteElo "2038"]
[BlackElo "1767"]

1. d4 {[%clk 00:20:09]} {[%emt 00:00:02]} d5 {[%clk 00:20:09]} {[%emt
00:00:01]} 2. Nf3 {[%clk 00:20:13]} Nf6 {[%clk 00:20:10]} {[%emt 00:00:05]} 3.
e3 {[%clk 00:20:17]} e6 {[%clk 00:20:14]} {[%emt 00:00:02]} 4. Bd3 {[%clk
00:20:21]} Be7 {[%clk 00:20:10]} {[%emt 00:00:10]} 5. Nbd2 {[%clk 00:20:24]}
{[%emt 00:00:02]} O-O {[%clk 00:20:12]} {[%emt 00:00:02]} 6. O-O {[%clk
00:20:28]} {[%emt 00:00:02]} Nbd7 {[%clk 00:20:16]} 7. e4 {[%clk 00:20:18]}
{[%emt 00:00:15]} dxe4 {[%clk 00:20:19]} {[%emt 00:00:02]} 8. Nxe4 {[%clk
00:20:21]} {[%emt 00:00:02]} b6 {[%clk 00:20:17]} {[%emt 00:00:06]} 9. c3
{[%clk 00:20:24]} {[%emt 00:00:02]} Bb7 {[%clk 00:20:21]} {[%emt 00:00:01]} 10.
Nxf6+ {[%clk 00:19:48]} {[%emt 00:00:42]} Nxf6 {[%clk 00:20:22]} {[%emt
00:00:03]} 11. Re1 {[%clk 00:19:51]} {[%emt 00:00:02]} Qd6 {[%clk 00:18:49]}
{[%emt 00:01:39]} 12. Bg5 {[%clk 00:18:31]} {[%emt 00:01:24]} Rad8 {[%clk
00:17:26]} {[%emt 00:01:28]} 13. Qe2 {[%clk 00:18:06]} {[%emt 00:00:31]} c5
{[%clk 00:16:43]} {[%emt 00:00:48]} 14. Bxf6 {[%clk 00:16:10]} {[%emt
00:02:01]} Bxf6 {[%clk 00:16:43]} {[%emt 00:00:05]} 15. Bc2 {[%clk 00:12:39]}
{[%emt 00:03:36]} cxd4 {[%clk 00:16:03]} {[%emt 00:00:44]} 16. Nxd4 {[%clk
00:12:26]} {[%emt 00:00:18]} Bxd4 {[%clk 00:15:16]} {[%emt 00:00:53]} 17. Rad1
{[%clk 00:12:23]} {[%emt 00:00:07]} Qc6 {[%clk 00:14:52]} {[%emt 00:00:29]} 18.
Be4 {[%clk 00:12:02]} {[%emt 00:00:27]} Qxe4 {[%clk 00:14:56]} 19. Qxe4 {[%clk
00:11:59]} {[%emt 00:00:07]} Bxe4 {[%clk 00:15:00]} 20. cxd4 {[%clk 00:11:43]}
{[%emt 00:00:23]} Bg6 {[%clk 00:14:57]} {[%emt 00:00:08]} 21. f3 {[%clk
00:11:45]} {[%emt 00:00:02]} Rd5 {[%clk 00:15:01]} {[%emt 00:00:02]} 22. Kf2
{[%clk 00:11:49]} Rc8 {[%clk 00:15:04]} {[%emt 00:00:02]} 23. Rd2 {[%clk
00:11:51]} {[%emt 00:00:03]} Rc4 {[%clk 00:14:59]} {[%emt 00:00:10]} 24. Ke3
{[%clk 00:11:53]} {[%emt 00:00:03]} Rc8 {[%clk 00:14:51]} {[%emt 00:00:13]} 25.
f4 {[%clk 00:11:54]} {[%emt 00:00:03]} Rd7 {[%clk 00:14:36]} {[%emt 00:00:21]}
26. h3 {[%clk 00:11:48]} {[%emt 00:00:11]} Rdc7 {[%clk 00:14:36]} {[%emt
00:00:05]} 27. g4 {[%clk 00:11:48]} {[%emt 00:00:04]} Rc2 {[%clk 00:14:22]}
{[%emt 00:00:19]} 28. Ree2 {[%clk 00:11:52]} Rxd2 {[%clk 00:14:24]} {[%emt
00:00:04]} 29. Rxd2 {[%clk 00:11:56]} Rc2 {[%clk 00:14:28]} 30. Rd1 {[%clk
00:11:50]} {[%emt 00:00:14]} Rxb2 {[%clk 00:14:26]} {[%emt 00:00:07]} 31. d5
{[%clk 00:11:54]} {[%emt 00:00:01]} exd5 {[%clk 00:14:20]} {[%emt 00:00:11]} 32.
f5 {[%clk 00:11:57]} Rxa2 {[%clk 00:14:13]} {[%emt 00:00:14]} 33. Rxd5 {[%clk
00:11:54]} {[%emt 00:00:08]} h6 {[%clk 00:14:12]} {[%emt 00:00:06]} 34. h4
{[%clk 00:11:23]} {[%emt 00:00:35]} Ra3+ {[%clk 00:14:12]} {[%emt 00:00:05]} 35.
Kf4 {[%clk 00:11:25]} {[%emt 00:00:03]} Ra4+ {[%clk 00:14:16]} {[%emt
00:00:02]} 36. Kf3 {[%clk 00:11:17]} {[%emt 00:00:08]} Bxf5 {[%clk 00:14:20]}
37. Rxf5 {[%clk 00:11:17]} {[%emt 00:00:10]} Rd4 {[%clk 00:14:21]} {[%emt
00:00:04]} 38. Re5 {[%clk 00:11:19]} {[%emt 00:00:03]} Kf8 {[%clk 00:14:25]} 39.
g5 {[%clk 00:11:23]} hxg5 {[%clk 00:14:28]} {[%emt 00:00:04]} 40. hxg5 {[%clk
00:11:27]} Rd8 {[%clk 00:14:31]} {[%emt 00:00:04]} 41. Kf4 {[%clk 00:11:27]}
{[%emt 00:00:05]} Rb8 {[%clk 00:14:35]} 42. Kf5 {[%clk 00:11:27]} {[%emt
00:00:05]} b5 {[%clk 00:14:31]} {[%emt 00:00:10]} 43. Rc5 {[%clk 00:11:23]}
{[%emt 00:00:08]} g6+ {[%clk 00:14:28]} {[%emt 00:00:09]} 44. Kf6 {[%clk
00:11:25]} {[%emt 00:00:03]} Rb6+ {[%clk 00:14:33]} 45. Ke5 {[%clk 00:11:28]}
b4 {[%clk 00:14:34]} {[%emt 00:00:05]} 46. Ra5 {[%clk 00:11:19]} {[%emt
00:00:14]} a6 {[%clk 00:14:36]} {[%emt 00:00:04]} 47. Kd4 {[%clk 00:11:23]}
{[%emt 00:00:01]} b3 {[%clk 00:14:36]} {[%emt 00:00:05]} 48. Ra1 {[%clk
00:11:25]} {[%emt 00:00:02]} b2 {[%clk 00:14:40]} {[%emt 00:00:02]} 49. Rb1
{[%clk 00:11:30]} Ke7 {[%clk 00:14:44]} 50. Kc3 {[%clk 00:11:34]} {[%emt
00:00:03]} Ke6 {[%clk 00:14:48]} 51. Kc2 {[%clk 00:11:30]} {[%emt 00:00:08]}
Kf5 {[%clk 00:14:51]} {[%emt 00:00:02]} 52. Rf1+ {[%clk 00:11:34]} Kxg5 {[%clk
00:14:55]} 53. Kb1 {[%clk 00:11:39]} f5 {[%clk 00:14:58]} 54. Rg1+ {[%clk
00:11:43]} {[%emt 00:00:06]} Kf6 {[%clk 00:15:02]} 55. Rh1 {[%clk 00:11:46]}
{[%emt 00:00:03]} a5 {[%clk 00:15:06]} 56. Rh2 {[%clk 00:11:49]} {[%emt
00:00:01]} a4 {[%clk 00:15:11]} 57. Rh3 {[%clk 00:11:53]} Rb3 {[%clk 00:15:13]}
{[%emt 00:00:03]} 58. Rh4 {[%clk 00:11:52]} {[%emt 00:00:05]} a3 {[%clk
00:15:17]} {[%emt 00:00:02]} 59. Ra4 {[%clk 00:11:56]} g5 {[%clk 00:15:20]}
{[%emt 00:00:03]} 60. Ra5 {[%clk 00:11:48]} {[%emt 00:00:13]} g4 {[%clk
00:15:23]} {[%emt 00:00:02]} 61. Ra4 {[%clk 00:11:50]} {[%emt 00:00:03]} Kg5
{[%emt 00:00:02]} 62. Ra5 g3 {[%clk 00:15:31]} {[%emt 00:00:01]} 63. Ra8 {[%clk
00:11:52]} {[%emt 00:00:06]} Kf4 {[%clk 00:15:35]} {[%emt 00:00:03]} 64. Rg8
{[%clk 00:11:16]} {[%emt 00:00:40]} a2+ {[%clk 00:15:37]} {[%emt 00:00:03]} 65.
Kxa2 {[%clk 00:11:20]} b1=Q# 0-1

[Event "Nové Hrady - Rapid A"]
[Site "Nové Hrady, Czech Republic"]
[Date "2023.08.12"]
[Round "3.5"]
[White "Drda, Štěpán"]
[Black "Slabý, Matěj"]
[Result "0-1"]
[TimeControl "2x20min+5s"]
[WhiteFideId "23731567"]
[BlackFideId "23734876"]
[WhiteElo "1582"]
[BlackElo "1944"]

1. c4 {[%clk 00:20:09]} e5 {[%clk 00:20:04]} {[%emt 00:00:07]} 2. Nc3 {[%clk
00:20:12]} Bb4 {[%clk 00:20:06]} {[%emt 00:00:03]} 3. g3 {[%clk 00:20:15]} Bxc3
{[%clk 00:20:05]} {[%emt 00:00:08]} 4. bxc3 {[%clk 00:20:19]} d6 {[%clk
00:20:07]} {[%emt 00:00:04]} 5. Bg2 {[%clk 00:20:21]} {[%emt 00:00:02]} Ne7
{[%clk 00:20:09]} {[%emt 00:00:03]} 6. d4 {[%clk 00:20:09]} {[%emt 00:00:17]}
Nbc6 {[%clk 00:20:08]} {[%emt 00:00:06]} 7. e3 {[%clk 00:20:10]} {[%emt
00:00:04]} O-O {[%clk 00:19:47]} {[%emt 00:00:27]} 8. Ne2 {[%clk 00:20:00]}
{[%emt 00:00:14]} Bf5 {[%clk 00:18:33]} {[%emt 00:01:19]} 9. O-O {[%clk
00:19:55]} {[%emt 00:00:09]} f6 {[%clk 00:18:14]} {[%emt 00:00:25]} 10. Ba3
{[%clk 00:19:34]} {[%emt 00:00:25]} Qd7 {[%emt 00:01:36]} 11. Re1 {[%clk
00:18:45]} {[%emt 00:00:10]} Rae8 {[%clk 00:16:01]} {[%emt 00:01:32]} 12. c5
{[%clk 00:17:53]} {[%emt 00:00:57]} dxc5 {[%clk 00:15:23]} {[%emt 00:00:43]} 13.
Bxc5 {[%clk 00:17:48]} {[%emt 00:00:10]} b6 {[%clk 00:15:03]} {[%emt 00:00:25]}
14. Ba3 {[%clk 00:17:34]} {[%emt 00:00:18]} Na5 {[%clk 00:14:18]} {[%emt
00:00:52]} 15. c4 {[%clk 00:11:59]} {[%emt 00:05:39]} Nxc4 {[%clk 00:12:03]}
{[%emt 00:02:21]} 16. Qb3 {[%emt 00:01:31]} b5 {[%clk 00:10:02]} {[%emt
00:02:04]} 17. dxe5 {[%clk 00:09:14]} {[%emt 00:01:24]} fxe5 {[%clk 00:05:08]}
{[%emt 00:05:01]} 18. Rad1 {[%clk 00:09:00]} {[%emt 00:00:19]} Qe6 {[%clk
00:04:32]} {[%emt 00:00:40]} 19. Bxe7 {[%clk 00:08:37]} {[%emt 00:00:28]} Qxe7
{[%clk 00:04:36]} {[%emt 00:00:02]} 20. Qxb5 {[%clk 00:08:36]} {[%emt
00:00:05]} Nd6 {[%clk 00:04:29]} {[%emt 00:00:12]} 21. Qa4 {[%clk 00:08:11]}
{[%emt 00:00:30]} Qf6 {[%clk 00:01:02]} {[%emt 00:03:32]} 22. Rf1 {[%clk
00:07:17]} {[%emt 00:01:00]} Rb8 {[%clk 00:00:45]} {[%emt 00:00:22]} 23. Nc3
{[%clk 00:05:52]} {[%emt 00:01:29]} Rb2 {[%clk 00:00:17]} {[%emt 00:00:31]} 24.
Nd5 {[%clk 00:05:36]} {[%emt 00:00:23]} Qf7 {[%clk 00:00:11]} {[%emt 00:00:11]}
25. Qa3 {[%clk 00:04:51]} {[%emt 00:00:50]} Rc2 {[%clk 00:00:15]} 26. Nxc7
{[%clk 00:04:27]} {[%emt 00:00:30]} Qxc7 {[%clk 00:00:19]} 27. Qxd6 {[%clk
00:04:30]} {[%emt 00:00:04]} Qxd6 {[%clk 00:00:19]} {[%emt 00:00:04]} 28. Rxd6
{[%clk 00:04:33]} {[%emt 00:00:02]} e4 {[%clk 00:00:07]} {[%emt 00:00:17]} 29.
Rd5 {[%clk 00:04:20]} {[%emt 00:00:18]} Be6 {[%clk 00:00:06]} {[%emt 00:00:07]}
30. Re5 {[%clk 00:04:22]} {[%emt 00:00:01]} 0-1

[Event "Nové Hrady - Rapid A"]
[Site "Nové Hrady, Czech Republic"]
[Date "2023.08.12"]
[Round "3.6"]
[White "Rausch, Rudolf"]
[Black "Šlechta, Adam"]
[Result "1/2-1/2"]
[TimeControl "2x20min+5s"]
[WhiteFideId "1639455"]
[BlackFideId "23734450"]
[WhiteElo "1861"]
[BlackElo "1409"]

1. d4 {[%clk 00:20:08]} {[%emt 00:00:02]} Nf6 {[%clk 00:20:08]} {[%emt
00:00:02]} 2. c4 {[%clk 00:20:12]} g6 {[%clk 00:20:12]} 3. Nc3 {[%clk
00:20:15]} {[%emt 00:00:04]} Bg7 {[%clk 00:20:16]} {[%emt 00:00:02]} 4. Nf3
{[%clk 00:20:19]} {[%emt 00:00:01]} O-O {[%clk 00:20:14]} {[%emt 00:00:06]} 5.
Bf4 {[%clk 00:20:23]} {[%emt 00:00:02]} d6 {[%clk 00:20:12]} {[%emt 00:00:07]}
6. h3 {[%clk 00:20:25]} {[%emt 00:00:02]} c5 {[%clk 00:20:07]} {[%emt
00:00:10]} 7. e3 {[%clk 00:20:25]} {[%emt 00:00:06]} b6 {[%clk 00:19:33]}
{[%emt 00:00:38]} 8. Be2 {[%clk 00:20:26]} {[%emt 00:00:04]} Bb7 {[%clk
00:19:37]} {[%emt 00:00:02]} 9. O-O {[%clk 00:20:28]} {[%emt 00:00:02]} Nbd7
{[%clk 00:18:47]} {[%emt 00:00:55]} 10. Rc1 {[%clk 00:20:27]} {[%emt 00:00:06]}
Rc8 {[%clk 00:18:49]} {[%emt 00:00:03]} 11. d5 {[%clk 00:20:05]} {[%emt
00:00:27]} Nb8 {[%clk 00:18:22]} {[%emt 00:00:32]} 12. b3 {[%clk 00:19:57]}
{[%emt 00:00:13]} Na6 {[%clk 00:18:25]} {[%emt 00:00:02]} 13. Nb5 {[%clk
00:19:45]} {[%emt 00:00:18]} Nc7 {[%clk 00:17:59]} {[%emt 00:00:31]} 14. Nxc7
{[%clk 00:18:36]} {[%emt 00:01:13]} Qxc7 {[%clk 00:17:23]} {[%emt 00:00:42]} 15.
a4 {[%clk 00:18:23]} {[%emt 00:00:17]} a6 {[%clk 00:16:55]} {[%emt 00:00:34]}
16. Nd2 {[%clk 00:18:06]} {[%emt 00:00:21]} b5 {[%clk 00:16:31]} {[%emt
00:00:29]} 17. axb5 {[%clk 00:18:01]} {[%emt 00:00:10]} axb5 {[%clk 00:16:35]}
18. Qc2 {[%clk 00:17:58]} {[%emt 00:00:08]} Ra8 {[%clk 00:16:00]} {[%emt
00:00:42]} 19. Ra1 {[%clk 00:17:35]} {[%emt 00:00:27]} Ra5 {[%clk 00:15:29]}
{[%emt 00:00:37]} 20. Rxa5 {[%clk 00:17:23]} {[%emt 00:00:16]} Qxa5 {[%clk
00:15:32]} {[%emt 00:00:02]} 21. Ne4 {[%clk 00:17:12]} {[%emt 00:00:17]} Ra8
{[%clk 00:15:07]} {[%emt 00:00:29]} 22. Nxf6+ {[%clk 00:17:03]} {[%emt
00:00:14]} Bxf6 {[%clk 00:15:10]} {[%emt 00:00:02]} 23. e4 {[%clk 00:16:30]}
{[%emt 00:00:38]} Qa2 {[%clk 00:14:45]} {[%emt 00:00:30]} 24. Rc1 {[%clk
00:16:06]} {[%emt 00:00:26]} bxc4 {[%clk 00:14:12]} {[%emt 00:00:41]} 25. Bxc4
{[%clk 00:15:59]} {[%emt 00:00:12]} Qxc2 {[%clk 00:13:49]} {[%emt 00:00:28]} 26.
Rxc2 {[%clk 00:16:02]} Ra1+ {[%clk 00:13:38]} {[%emt 00:00:18]} 27. Rc1 {[%clk
00:15:50]} {[%emt 00:00:16]} Rxc1+ {[%clk 00:13:16]} {[%emt 00:00:28]} 28. Bxc1
{[%clk 00:15:54]} Kf8 {[%clk 00:13:17]} {[%emt 00:00:05]} 29. g4 {[%clk
00:14:14]} {[%emt 00:01:45]} e6 {[%clk 00:12:07]} {[%emt 00:01:16]} 30. f4
{[%clk 00:12:23]} {[%emt 00:01:55]} Bd4+ {[%clk 00:11:48]} {[%emt 00:00:24]} 31.
Kg2 {[%clk 00:12:23]} {[%emt 00:00:04]} exd5 {[%clk 00:11:51]} {[%emt
00:00:03]} 32. exd5 {[%clk 00:12:17]} {[%emt 00:00:10]} Ke7 {[%clk 00:11:38]}
{[%emt 00:00:19]} 33. Kf3 {[%clk 00:12:20]} f5 {[%clk 00:11:28]} {[%emt
00:00:17]} 34. Bd2 {[%clk 00:12:04]} {[%emt 00:00:20]} h6 {[%clk 00:10:57]}
{[%emt 00:00:37]} 35. Be1 {[%clk 00:11:13]} {[%emt 00:00:56]} Kf6 {[%clk
00:10:22]} {[%emt 00:00:41]} 36. Bh4+ {[%clk 00:11:05]} {[%emt 00:00:12]} g5
{[%clk 00:10:20]} {[%emt 00:00:07]} 37. fxg5+ {[%clk 00:11:05]} {[%emt
00:00:05]} hxg5 {[%clk 00:10:23]} {[%emt 00:00:02]} 38. Be1 {[%clk 00:11:03]}
{[%emt 00:00:06]} fxg4+ {[%clk 00:07:12]} {[%emt 00:03:21]} 39. hxg4 {[%clk
00:10:28]} {[%emt 00:00:37]} Be5 {[%clk 00:06:52]} {[%emt 00:00:24]} 1/2-1/2

[Event "Nové Hrady - Rapid A"]
[Site "Nové Hrady, Czech Republic"]
[Date "2023.08.12"]
[Round "3.7"]
[White "Kukla, Josef"]
[Black "Slabý, Martin"]
[Result "1-0"]
[TimeControl "2x20min+5s"]
[WhiteFideId "23725869"]
[BlackFideId "23713593"]
[WhiteElo "1364"]
[BlackElo "1309"]

1. d4 {[%clk 00:20:06]} {[%emt 00:00:04]} Nf6 {[%clk 00:20:04]} {[%emt
00:00:07]} 2. Bf4 {[%clk 00:20:08]} {[%emt 00:00:02]} e6 {[%clk 00:19:39]}
{[%emt 00:00:30]} 3. Nf3 {[%clk 00:19:56]} {[%emt 00:00:17]} a6 {[%clk
00:18:46]} {[%emt 00:00:59]} 4. Nbd2 {[%clk 00:19:41]} {[%emt 00:00:19]} b5
{[%clk 00:18:14]} {[%emt 00:00:38]} 5. e3 {[%clk 00:19:31]} {[%emt 00:00:14]}
Bb7 {[%clk 00:18:06]} {[%emt 00:00:14]} 6. Bd3 {[%clk 00:19:20]} {[%emt
00:00:15]} c5 {[%clk 00:17:32]} {[%emt 00:00:40]} 7. c3 {[%clk 00:19:14]}
{[%emt 00:00:10]} cxd4 {[%clk 00:17:12]} {[%emt 00:00:25]} 8. cxd4 {[%clk
00:19:12]} {[%emt 00:00:08]} d6 {[%clk 00:17:02]} {[%emt 00:00:15]} 9. O-O
{[%clk 00:18:08]} {[%emt 00:01:07]} Nbd7 {[%clk 00:16:54]} {[%emt 00:00:14]} 10.
Bg5 {[%clk 00:17:27]} {[%emt 00:00:45]} Be7 {[%clk 00:16:44]} {[%emt 00:00:16]}
11. Rc1 {[%clk 00:17:09]} {[%emt 00:00:23]} O-O {[%clk 00:16:14]} {[%emt
00:00:35]} 12. e4 {[%clk 00:16:11]} {[%emt 00:01:02]} Rc8 {[%clk 00:14:22]}
{[%emt 00:01:58]} 13. Rxc8 {[%clk 00:15:47]} {[%emt 00:00:30]} Qxc8 {[%clk
00:14:20]} {[%emt 00:00:07]} 14. e5 {[%clk 00:15:09]} {[%emt 00:00:42]} Bxf3
{[%clk 00:12:37]} {[%emt 00:01:48]} 15. Nxf3 {[%clk 00:15:02]} {[%emt
00:00:12]} dxe5 {[%clk 00:11:38]} {[%emt 00:01:05]} 16. dxe5 {[%clk 00:14:55]}
{[%emt 00:00:12]} Qd8 {[%clk 00:10:09]} {[%emt 00:01:34]} 17. exf6 {[%clk
00:14:43]} {[%emt 00:00:17]} Bxf6 {[%clk 00:09:56]} {[%emt 00:00:18]} 18. Bxf6
{[%clk 00:14:12]} {[%emt 00:00:36]} Nxf6 {[%clk 00:09:59]} {[%emt 00:00:02]} 19.
Qc2 {[%clk 00:13:47]} {[%emt 00:00:29]} Qb8 {[%clk 00:09:34]} {[%emt 00:00:28]}
20. Rc1 {[%clk 00:13:27]} {[%emt 00:00:27]} g6 {[%clk 00:09:12]} {[%emt
00:00:27]} 21. Qc3 {[%clk 00:13:09]} {[%emt 00:00:24]} Nd5 {[%clk 00:08:40]}
{[%emt 00:00:36]} 22. Qe5 {[%clk 00:12:02]} {[%emt 00:01:12]} Qd8 {[%clk
00:07:58]} {[%emt 00:00:48]} 23. Qd4 {[%clk 00:10:10]} {[%emt 00:01:56]} Qa5
{[%clk 00:06:37]} {[%emt 00:01:27]} 24. a3 {[%clk 00:09:35]} {[%emt 00:00:39]}
b4 {[%clk 00:05:42]} {[%emt 00:01:01]} 25. Rc5 {[%clk 00:08:48]} {[%emt
00:00:51]} Qa4 {[%clk 00:04:16]} {[%emt 00:01:32]} 26. Bc2 {[%clk 00:08:05]}
{[%emt 00:00:46]} Qd7 {[%clk 00:03:02]} {[%emt 00:01:16]} 27. axb4 {[%clk
00:07:11]} {[%emt 00:01:03]} Rd8 {[%clk 00:02:37]} {[%emt 00:00:30]} 28. h3
{[%clk 00:06:36]} {[%emt 00:00:39]} Qe7 {[%clk 00:02:22]} {[%emt 00:00:20]} 29.
Qc4 {[%clk 00:06:02]} {[%emt 00:00:39]} Nb6 {[%clk 00:02:06]} {[%emt 00:00:22]}
30. Qxa6 {[%clk 00:05:28]} {[%emt 00:00:39]} Qd6 {[%clk 00:01:40]} {[%emt
00:00:32]} 31. Qe2 {[%clk 00:04:44]} {[%emt 00:00:48]} Ra8 {[%clk 00:01:09]}
{[%emt 00:00:36]} 32. Qe5 {[%clk 00:03:54]} {[%emt 00:00:55]} Ra1+ {[%clk
00:00:09]} {[%emt 00:01:06]} 33. Kh2 {[%clk 00:03:49]} {[%emt 00:00:08]} Qf8
{[%clk 00:00:12]} {[%emt 00:00:03]} 34. Qc7 {[%clk 00:03:33]} {[%emt 00:00:21]}
Na8 {[%clk 00:00:09]} {[%emt 00:00:09]} 35. Qc8 {[%clk 00:03:31]} {[%emt
00:00:06]} Qxc8 {[%clk 00:00:08]} {[%emt 00:00:06]} 36. Rxc8+ {[%clk 00:03:32]}
{[%emt 00:00:04]} 1-0